[Event "Super United Croatia GCT Blitz 2022"]
[Site "Zagreb"]
[Date "2022.07.24"]
[Round "17"]
[White "So, Wesley"]
[Black "Vachier-Lagrave, Maxime"]
[Result "1/2-1/2"]
[ECO "D85"]
[WhiteElo "2773"]
[BlackElo "2760"]
[Annotator "TA"]
[PlyCount "48"]
[EventDate "2022.07.20"]
[EventType "tourn"]
[EventCountry "CRO"]
[SourceTitle "playchess.com"]
[Source "ChessBase"]
[SourceQuality "1"]
[TimeControl "300+2"]

{[%evp 23,48,6,48,30,33,17,36,0,0,0,0,0,0,0,0,0,0,0,0,-20,0,0,0,0,0,0,0]} 1. d4 {[%emt 0:00:02]} Nf6 {[%emt 0:00:02]} 2. c4 {[%emt 0:00:01]} g6 {[%emt 0:00:01]} 3. Nc3 {[%emt 0:00:01]} d5 {[%emt 0:00:01]} 4. cxd5 {[%emt 0:00:01]} Nxd5 {[%emt 0:00:01]} 5. e4 {[%emt 0:00:01]} Nxc3 {[%emt 0:00:01]} 6. bxc3 {[%emt 0:00:01]} Bg7 {[%emt 0:00:01]} 7. Nf3 {[%emt 0:00:01]} c5 {[%emt 0:00:01]} 8. Rb1 {[%emt 0:00:01]} O-O {[%emt 0:00:03]} 9. Be2 {[%emt 0:00:01]} cxd4 {[%emt 0:00:01]} 10. cxd4 {[%emt 0:00:01]} Qa5+ {[%emt 0:00:02]} 11. Bd2 {[%emt 0:00:01]} Qxa2 {[%emt 0:00:01]} 12. O-O {[%emt 0:00:02]} Bg4 {[%emt 0:00:02]} 13. Rxb7 {[%emt 0:00:04] D85: Exchange Grünfeld: Unusual White 7th moves and lines with 7 Nf3.} Bxf3 {[%emt 0:00:02]} 14. Bxf3 {[%emt 0:00:01] [#] And now e5 would win.} Bxd4 {[%emt 0:00:01]} 15. e5 {[%emt 0:00:03] White is slightly better.} (15. Bb4 $5 {[%cal Rd1d4]} Rd8 16. Qc1 $11 (16. Bxe7 $2 Bxf2+ 17. Rxf2 Rxd1+ 18. Bxd1 Qa1 $19) (16. Rxe7 $2 Nc6 $19)) 15... Na6 {[%emt 0:00:14][%cal Bb8a6,Ba6c5,Bc5d3,Bd3e1][%mdl 32] The position is equal.} 16. Rxe7 {[%emt 0:00:02]} Rad8 {[%emt 0:00:09] White must now prevent ...Bc5.} 17. e6 {[%emt 0:00:02]} fxe6 {[%emt 0:00:02] [#] Threatens to win with ...Bc5.} 18. Qe1 {[%emt 0:00:02] [#]} Nc5 $146 {[%emt 0:00:08]} ({Predecessor:} 18... Bf6 19. Rxa7 Rxd2 20. Rxa6 Qxa6 21. Qxd2 Qb6 22. g3 Bd4 23. Qe2 Rf6 24. Kg2 Qb2 25. Qxb2 Bxb2 {½-½ (44) Grischuk,A (2776)-Vachier Lagrave,M (2760) Bucharest 2021}) 19. Bc3 {[%emt 0:00:07] Strongly threatening Bxd4.} Nd3 {[%emt 0:00:05]} 20. Bxd4 $1 {[%emt 0:00:01] Dancing on a razor blade. This bishop pair is nice.} Nxe1 {[%emt 0:00:01]} 21. Rg7+ {[%emt 0:00:01]} Kh8 {[%emt 0:00:01]} 22. Rd7+ {[%emt 0:00:01]} Kg8 {[%emt 0:00:01]} (22... e5 $2 23. Bxe5+ Rf6 24. Bxf6+ Kg8 25. Rxd8+ $18) 23. Rg7+ {[%emt 0:00:01]} Kh8 {[%emt 0:00:01]} 24. Rd7+ {[%emt 0:00:02]} Kg8 {[%emt 0:00:01] Weighted Error Value: White=0.04 (flawless) /Black=0.04 (flawless)} (24... e5 $2 25. Bxe5+ Rf6 26. Bxf6+ Kg8 27. Rxd8+ $18) 1/2-1/2

[Event "Super United Croatia GCT Blitz 2022"]
[Site "Zagreb"]
[Date "2022.07.24"]
[Round "17"]
[White "Dominguez Perez, Leinier"]
[Black "Saric, Ivan"]
[Result "1/2-1/2"]
[ECO "B56"]
[WhiteElo "2754"]
[BlackElo "2680"]
[Annotator "TA"]
[PlyCount "113"]
[EventDate "2022.07.20"]
[EventType "tourn"]
[EventCountry "CRO"]
[SourceTitle "playchess.com"]
[Source "ChessBase"]
[SourceQuality "1"]
[TimeControl "300+2"]

{[%evp 11,113,0,0,7,18,0,0,0,5,0,7,0,26,11,26,12,29,27,41,0,0,0,0,0,38,0,0,-1,-1,-6,0,0,0,0,11,14,7,8,45,0,0,1,253,10,35,0,67,65,74,66,81,62,53,52,124,133,102,107,97,74,148,72,82,40,43,0,0,0,0,0,0,0,0,0,0,0,0,0,0,0,0,0,0,-8,0,-16,0,0,0,0,0,0,0,0,0,0,0,0,0,0,0,0,0,0]} 1. e4 {[%emt 0:00:01]} c5 {[%emt 0:00:00]} 2. Nf3 {[%emt 0:00:01]} d6 {[%emt 0:00:01]} 3. d4 {[%emt 0:00:01]} cxd4 {[%emt 0:00:01]} 4. Nxd4 {[%emt 0:00:02]} Nf6 {[%emt 0:00:00]} 5. Nc3 {[%emt 0:00:01]} Nc6 {[%emt 0:00:01]} 6. h3 {[%emt 0:00:03]} e5 {[%emt 0:00:03]} 7. Nf3 {[%emt 0:00:02] B56: Classical Sicilian: Unusual Lines.} Be7 {[%emt 0:00:03]} 8. Bc4 {[%emt 0:00:03]} O-O {[%emt 0:00:03]} 9. a3 {[%emt 0:00:01]} Be6 {[%emt 0:00:05]} 10. Ba2 {[%emt 0:00:02]} h6 {[%emt 0:00:08]} 11. O-O {[%emt 0:00:02] [#]} Bxa2 $146 {[%emt 0:00:15]} ({Predecessor:} 11... Rc8 12. Be3 a6 13. Nh4 Bxa2 14. Rxa2 Nxe4 15. Nxe4 Bxh4 16. Nxd6 Rb8 17. c4 Be7 {1-0 (37) Andreikin,D (2726)-Pichot,A (2606) Chess.com INT 2020}) 12. Rxa2 {[%emt 0:00:02]} Rc8 {[%emt 0:00:04]} 13. Qd3 {[%emt 0:00:05]} a6 {[%emt 0:00:07]} 14. Rd1 {[%emt 0:00:04]} Qc7 {[%emt 0:00:01]} 15. Ra1 {[%emt 0:00:16]} Rfd8 {[%emt 0:00:02]} 16. Be3 {[%emt 0:00:50]} Na5 {[%emt 0:00:19]} 17. Nd2 {[%emt 0:00:15]} b5 {[%emt 0:00:10]} 18. Rac1 {[%emt 0:00:16]} Qb7 {[%emt 0:00:20]} 19. Nf1 {[%emt 0:00:10]} Nc4 {[%emt 0:00:04]} 20. Rb1 {[%emt 0:00:06]} a5 {[%emt 0:00:14]} 21. Nd5 {[%emt 0:00:15]} Nxd5 {[%emt 0:00:15]} 22. Qxd5 {[%emt 0:00:01]} Qb8 {[%emt 0:00:32]} 23. Qd3 {[%emt 0:00:20]} b4 {[%emt 0:00:22]} 24. axb4 {[%emt 0:00:34]} Qxb4 {[%emt 0:00:12]} 25. b3 {[%emt 0:00:40] [#] Black must now prevent c3.} (25. Bc1 $5 {[%cal Rb2b3]}) 25... Na3 {[%emt 0:00:09][%csl LRb1,LRc2] ...Rc3 is the strong threat.} 26. Bd2 {[%emt 0:00:25] Prevents Rc3.} Qc5 {[%emt 0:00:29][%mdl 8192]} (26... Qb7 $11 {and Black has nothing to worry.}) 27. Rbc1 $2 {[%emt 0:00:09]} ({Only move:} 27. b4 $18 axb4 28. Bxb4 Nxb1 29. Bxc5 dxc5 30. Qf3 (30. Rxb1 Rxd3 31. cxd3 c4 $11)) 27... d5 {[%emt 0:00:10]} 28. exd5 {[%emt 0:00:20]} Rxd5 {[%emt 0:00:08]} (28... Qxd5 $11 29. Qxd5 Rxd5) 29. Qe4 $14 {[%emt 0:00:10] Threatens to win with Be3.} Rcd8 {[%emt 0:00:13]} (29... Nxc2 $2 30. Ne3 Rd4 31. Qxc2 $18) 30. Be3 $36 {[%emt 0:00:03][%mdl 2048] White has the initiative.} Qd6 {[%emt 0:00:36]} 31. Rxd5 {[%emt 0:00:02]} Qxd5 {[%emt 0:00:00]} 32. Qa4 {[%emt 0:00:01]} Rc8 {[%emt 0:00:23]} (32... Ra8 $14) 33. c4 $16 {[%emt 0:00:06]} Qb7 {[%emt 0:00:10]} 34. Qxa5 {[%emt 0:00:17]} Qxb3 {[%emt 0:00:03]} 35. Qxe5 {[%emt 0:00:04]} Bf8 {[%emt 0:00:10] [#]} ({Black should play} 35... Bf6 36. Qf5 Rxc4) 36. Nd2 {[%emt 0:00:07]} ({Better is} 36. c5 $1) 36... Qd3 {[%emt 0:00:03][%cal Ra3c4] Against Qf5} 37. c5 {[%emt 0:00:07] White is more active.} Nc2 {[%emt 0:00:06]} 38. Nf1 {[%emt 0:00:06][%cal Bd2f1,Bf1e3,Be3f5][%mdl 32]} Nxe3 {[%emt 0:00:06] The position is equal.} 39. Nxe3 {[%emt 0:00:01] And now c6 would win.} Qd2 {[%emt 0:00:02]} 40. Rc2 {[%emt 0:00:05]} Qe1+ {[%emt 0:00:05]} 41. Kh2 {[%emt 0:00:00] Strongly threatening c6.} Qa5 {[%emt 0:00:01]} 42. Nf5 {[%emt 0:00:06]} Rxc5 {[%emt 0:00:03]} 43. Rxc5 {[%emt 0:00:02]} Qxc5 {[%emt 0:00:01]} 44. Qxc5 {[%emt 0:00:02]} Bxc5 $11 {[%emt 0:00:01][%mdl 4096] Endgame KB-KN} 45. f3 {[%emt 0:00:01]} Bf8 {[%emt 0:00:01]} 46. Kh1 {[%emt 0:00:01]} g6 {[%emt 0:00:01]} 47. Ng3 {[%emt 0:00:02]} h5 {[%emt 0:00:00]} 48. Ne2 {[%emt 0:00:00]} Bd6 {[%emt 0:00:01]} 49. g4 {[%emt 0:00:02]} hxg4 {[%emt 0:00:01]} 50. hxg4 {[%emt 0:00:00]} Kg7 {[%emt 0:00:01]} 51. Kg2 {[%emt 0:00:01]} Kf6 {[%emt 0:00:00]} 52. f4 {[%emt 0:00:02]} Ke6 {[%emt 0:00:02]} 53. Kf3 {[%emt 0:00:00]} Kd5 {[%emt 0:00:02]} 54. Nc3+ {[%emt 0:00:02]} Ke6 {[%emt 0:00:02]} 55. Ne2 $1 {[%emt 0:00:01]} Kd5 {[%emt 0:00:00]} 56. Nc3+ {[%emt 0:00:01]} Ke6 {[%emt 0:00:01]} 57. Ne2 {[%emt 0:00:01] Weighted Error Value: White=0.16 (very precise) /Black=0.20 (precise)} 1/2-1/2

[Event "Super United Croatia GCT Blitz 2022"]
[Site "Zagreb"]
[Date "2022.07.24"]
[Round "17"]
[White "Topalov, Veselin"]
[Black "Nepomniachtchi, Ian"]
[Result "1/2-1/2"]
[ECO "C01"]
[WhiteElo "2728"]
[BlackElo "2766"]
[Annotator "TA"]
[PlyCount "140"]
[EventDate "2022.07.20"]
[EventType "tourn"]
[EventCountry "CRO"]
[SourceTitle "playchess.com"]
[Source "ChessBase"]
[SourceQuality "1"]
[TimeControl "300+2"]

{[%evp 20,140,18,5,16,14,25,10,22,6,66,43,92,78,108,122,118,87,144,135,150,181,229,61,72,61,60,37,94,105,92,102,85,89,87,68,140,88,91,63,60,63,49,45,316,287,458,424,501,500,731,439,408,8,8,8,219,204,219,187,280,204,210,0,0,0,0,0,0,0,197,0,14,0,0,0,0,0,0,0,0,0,137,104,149,97,80,0,1245,0,1337,1312,1156,1175,1127,1116,949,902,472,0,0,0,0,0,0,0,0,0,0,0,0,0,0,0,0,0,0,0,0,0,0,0,0]} 1. e4 {[%emt 0:00:01]} e5 {[%emt 0:00:01]} 2. Nf3 {[%emt 0:00:02]} Nf6 {[%emt 0:00:01]} 3. Nxe5 {[%emt 0:00:05]} d6 {[%emt 0:00:00]} 4. Nf3 {[%emt 0:00:01]} Nxe4 {[%emt 0:00:02]} 5. d3 {[%emt 0:00:01]} Nf6 {[%emt 0:00:01]} 6. d4 {[%emt 0:00:01]} d5 {[%emt 0:00:01]} 7. Bd3 {[%emt 0:00:05]} Bd6 {[%emt 0:00:01]} 8. O-O {[%emt 0:00:03]} O-O {[%emt 0:00:02]} 9. Bg5 {[%emt 0:00:01]} Bg4 {[%emt 0:00:04]} 10. Nbd2 {[%emt 0:00:02]} Nbd7 {[%emt 0:00:01]} 11. c4 {[%emt 0:00:03]} h6 {[%emt 0:00:35] C01: French: Exchange Variation.} 12. Bh4 {[%emt 0:00:05]} Bf4 {[%emt 0:00:09]} 13. h3 {[%emt 0:00:05]} dxc4 {[%emt 0:00:10]} 14. Nxc4 {[%emt 0:00:06]} Bh5 {[%emt 0:00:18] [#]} (14... Be6 $11) 15. Re1 $146 {[%emt 0:00:24]} ({Predecessor:} 15. Ne3 Re8 16. Nf5 Nb6 17. g4 Bg6 18. Qb3 Qd5 19. Qxd5 Nbxd5 20. Rfe1 Nb4 21. Bc4 Bxf5 22. gxf5 {1-0 (51) Rujevic,M (2250)-Levi,E (2245) Melbourne 1999}) 15... Re8 {[%emt 0:00:02]} (15... c6 $14) 16. g4 $16 {[%emt 0:00:43]} Rxe1+ {[%emt 0:00:30]} 17. Nxe1 {[%emt 0:00:05]} Bg6 {[%emt 0:00:01]} 18. Qf3 {[%emt 0:00:08]} Bd6 {[%emt 0:00:10]} (18... b5 $142) 19. Qxb7 {[%emt 0:00:05]} Bxd3 {[%emt 0:00:13]} 20. Nxd3 {[%emt 0:00:04]} Nb6 {[%emt 0:00:20]} (20... Qf8 $142 21. Rc1 a5 22. Nxd6 cxd6) 21. Nxb6 $2 {[%emt 0:00:07]} (21. Bxf6 $18 gxf6 22. Ne3) 21... axb6 $14 {[%emt 0:00:01]} 22. Bxf6 {[%emt 0:00:02]} gxf6 {[%emt 0:00:01]} 23. Qc6 {[%emt 0:00:19] Prevents Ra4.} Kg7 {[%emt 0:00:07]} (23... Bf8 $14) 24. a4 $16 {[%emt 0:00:05]} h5 {[%emt 0:00:30]} 25. b4 {[%emt 0:00:11]} hxg4 {[%emt 0:00:02]} 26. hxg4 {[%emt 0:00:00]} Qh8 {[%emt 0:00:02]} 27. Qf3 $1 {[%emt 0:00:16]} Qh2+ {[%emt 0:00:05]} 28. Kf1 {[%emt 0:00:00]} Rh8 {[%emt 0:00:00]} 29. Ke2 {[%emt 0:00:10]} c5 $1 {[%emt 0:00:39]} 30. bxc5 {[%emt 0:00:02]} bxc5 {[%emt 0:00:01]} 31. dxc5 {[%emt 0:00:01]} Be5 {[%emt 0:00:13][%mdl 8192]} (31... Bxc5 $14 32. Rc1 Bd4) 32. Rb1 $18 {[%emt 0:00:08] Hoping for a5.} Bd4 {[%emt 0:00:19]} (32... Bc7 {was worth a try.} 33. Rb7 Rd8) 33. Qe4 {[%emt 0:00:01]} Bc3 {[%emt 0:00:20]} 34. c6 {[%emt 0:00:10]} Qd6 {[%emt 0:00:07]} 35. Rc1 {[%emt 0:00:12]} Ba5 {[%emt 0:00:04]} 36. Rh1 $2 {[%emt 0:00:19]} (36. Rc5 $18 Qd8 37. Kf1) 36... Rxh1 $11 {[%emt 0:00:12]} 37. Qxh1 {[%emt 0:00:01][%mdl 4096] Endgame Black must now prevent Qe4. KQB-KQN. Chess con chili.} Qe6+ {[%emt 0:00:00]} (37... Qd4 $1 $11 {and Black is okay.}) 38. Kf1 $18 {[%emt 0:00:01]} Qc4 {[%emt 0:00:11]} 39. Qf3 {[%emt 0:00:03]} Qxa4 {[%emt 0:00:02]} (39... Bc7 $142 40. Kg2 Qxa4) 40. Kg2 {[%emt 0:00:01]} Bc7 {[%emt 0:00:02] Prevents Nf4.} 41. Nc1 $2 {[%emt 0:00:32]} ({White must play} 41. Nb2 $1 $18 {[%cal Rb2a4]} Qa2 42. Nd1) 41... Qc2 $11 {[%emt 0:00:01]} 42. Ne2 {[%emt 0:00:01]} ({Don't take} 42. Nd3 Bb8 $16) 42... Be5 {[%emt 0:00:14] Against Nd4} 43. Ng3 {[%emt 0:00:11]} Bxg3 {[%emt 0:00:01]} 44. Kxg3 {[%emt 0:00:01] And now Qd5 would win. KQ-KQ} Qc4 {[%emt 0:00:00] Against Qd5} (44... Qc1 $1 $11 {and Black stays safe.}) 45. Kh4 $2 {[%emt 0:00:15]} (45. Kg2 $18) 45... Qc2 {[%emt 0:00:07]} 46. Kg3 {[%emt 0:00:05]} Qc1 {[%emt 0:00:04]} 47. Qe4 {[%emt 0:00:10]} Qg1+ $1 {[%emt 0:00:01]} 48. Kf3 {[%emt 0:00:03]} Qh1+ $1 {[%emt 0:00:01]} 49. Kf4 {[%emt 0:00:07]} Qc1+ {[%emt 0:00:02]} 50. Kf3 {[%emt 0:00:03]} Qc3+ {[%emt 0:00:11]} (50... Qh1+ $1 $11 51. Ke3 Qe1+ 52. Kd4 Qb4+ 53. Kd5 Qa5+ 54. Kd6 Qd8+ 55. Kc5 Qa5+ 56. Kc4 Qa4+ 57. Kd5 Qa5+ 58. Kd6 Qd8+ 59. Kc5 Qa5+ 60. Kc4 Qa4+ 61. Kd3 Qa3+ 62. Kd4 Qb4+ 63. Kd5 Qa5+) 51. Ke2 {[%emt 0:00:01] Strongly threatening Qd5.} Qc5 {[%emt 0:00:01] [#] Prevents Qd5.} 52. Kd3 {[%emt 0:00:03]} (52. Qa4 $142 $1) 52... Qa3+ $16 {[%emt 0:00:09]} 53. Kd4 {[%emt 0:00:02]} (53. Kd2 $16 Qc5 54. Ke2) 53... Qa5 $2 {[%emt 0:00:05][%mdl 8192]} (53... Qb4+ $11 54. Kd5 Qa5+ 55. Kd6 Qd8+ 56. Kc5 Qa5+ 57. Kc4 Qa6+ 58. Kd5 Qa5+ 59. Kd6 Qd8+ 60. Kc5 Qa5+ 61. Kd4 Qa4+ 62. Kd5 Qa5+) 54. f3 $2 {[%emt 0:00:03]} (54. Qf5 $18 Qb4+ 55. Kd5) 54... Qb5 {[%emt 0:00:02][%mdl 8192]} (54... Qa1+ $11 55. Ke3 Qc3+ 56. Ke2 Qb2+ 57. Kd3 Qa3+ 58. Kd2 Qa5+ 59. Kd1 Qa1+ 60. Kc2 Qa2+ 61. Kd3 Qa3+ 62. Kd2 Qa5+ 63. Kd3 Qa3+) 55. Qd5 {[%emt 0:00:02]} Qb4+ {[%emt 0:00:01] [#]} 56. Qc4 $1 {[%emt 0:00:02]} Qd6+ {[%emt 0:00:01]} 57. Kc3 {[%emt 0:00:01] White threatens c7 and mate. Active counter play!} Qa3+ {[%emt 0:00:00]} 58. Kc2 {[%emt 0:00:01] Threatening mate with c7.} Qxf3 {[%emt 0:00:06]} 59. c7 $2 {[%emt 0:00:01]} (59. Qc5 $18) 59... Qf2+ $1 $11 {[%emt 0:00:01] The position is equal.} 60. Kb3 {[%emt 0:00:02]} Qb6+ $1 {[%emt 0:00:03]} 61. Kc3 {[%emt 0:00:01]} Qe3+ {[%emt 0:00:02]} 62. Kc2 {[%emt 0:00:02] Qc6 is the strong threat.} Qf2+ {[%emt 0:00:01]} 63. Kb1 $1 {[%emt 0:00:10]} Qg1+ {[%emt 0:00:02]} 64. Kb2 {[%emt 0:00:01]} Qb6+ {[%emt 0:00:03]} 65. Ka2 {[%emt 0:00:05]} Qa7+ {[%emt 0:00:01]} 66. Kb3 {[%emt 0:00:02]} Qb6+ $1 {[%emt 0:00:01]} 67. Ka4 {[%emt 0:00:02]} Qa7+ {[%emt 0:00:02]} 68. Kb3 $1 {[%emt 0:00:08]} Qb6+ $1 {[%emt 0:00:00]} 69. Kc3 {[%emt 0:00:02]} Qe3+ {[%emt 0:00:02]} 70. Kc2 {[%emt 0:00:01]} Qf2+ {[%emt 0:00:23] Black escapes into a draw.  Weighted Error Value: White=0.70/Black=0.47} 1/2-1/2

[Event "Super United Croatia GCT Blitz 2022"]
[Site "Zagreb"]
[Date "2022.07.24"]
[Round "17"]
[White "Van Foreest, Jorden"]
[Black "Mamedyarov, Shakhriyar"]
[Result "1/2-1/2"]
[ECO "C54"]
[WhiteElo "2678"]
[BlackElo "2759"]
[Annotator "TA"]
[PlyCount "115"]
[EventDate "2022.07.20"]
[EventType "tourn"]
[EventCountry "CRO"]
[SourceTitle "playchess.com"]
[Source "ChessBase"]
[SourceQuality "1"]
[TimeControl "300+2"]

{[%evp 15,115,26,12,19,17,16,4,0,25,21,49,19,15,21,28,-24,-45,-69,-63,-62,-23,-16,-11,-46,27,24,31,23,24,35,30,29,24,12,29,-7,0,-8,0,0,0,0,32,28,35,35,37,34,63,56,69,69,63,63,64,61,64,52,65,0,0,0,0,0,0,0,0,0,8,8,8,8,8,8,8,8,8,8,8,8,8,8,8,8,8,8,8,8,8,8,8,8,8,8,8,8,8,0,0,0,0,0]} 1. e4 {[%emt 0:00:01]} e5 {[%emt 0:00:00]} 2. Nf3 {[%emt 0:00:01]} Nc6 {[%emt 0:00:01]} 3. Bc4 {[%emt 0:00:07]} Bc5 {[%emt 0:00:01]} 4. c3 {[%emt 0:00:01]} Nf6 {[%emt 0:00:01]} 5. d3 {[%emt 0:00:06]} O-O {[%emt 0:00:03]} 6. O-O {[%emt 0:00:07]} d5 {[%emt 0:00:02]} 7. exd5 {[%emt 0:00:01]} Nxd5 {[%emt 0:00:01]} 8. Re1 {[%emt 0:00:01]} (8. Nbd2 Nb6 9. Bb5 Bd6 10. Ne4 f5 11. Nxd6 cxd6 12. d4 e4 13. Ng5 d5 14. Nh3 Bd7 15. a4 Ne7 16. Be2 a5 17. f3 Ng6 18. fxe4 fxe4 19. Nf4 Nxf4 20. Bxf4 Bc6 21. b3 Nd7 22. Qd2 Kh8 23. Rf2 Qe7 24. Raf1 {½-½ (90) Van Foreest,J (2714)-Mamedyarov,S (2771) Oslo 2022}) 8... Bg4 {[%emt 0:00:02]} 9. Nbd2 {[%emt 0:00:07][%cal Bb1d2,Bd2e4,Be4g3][%mdl 32] C54: Giuoco Piano: 4 c3 Nf6, main lines with 5 d4 and 5 d3.} Nb6 {[%emt 0:00:09]} 10. h3 {[%emt 0:00:02]} Bh5 {[%emt 0:00:00]} 11. Bb3 {[%emt 0:00:01] is cutting edge theory.} Kh8 {[%emt 0:00:08]} 12. Ne4 {[%emt 0:00:09]} Nd7 {[%emt 0:00:02]} 13. Ng3 {[%emt 0:00:08]} Bxf3 {[%emt 0:00:08]} 14. Qxf3 {[%emt 0:00:02]} f5 {[%emt 0:00:01][%cal Oe5e4] Inhibits Ne4.} 15. d4 {[%emt 0:00:02]} (15. Nxf5 $2 g6 16. g4 gxf5 $19) ({Better is} 15. Bc2) 15... exd4 $11 {[%emt 0:00:03]} 16. Bf4 {[%emt 0:00:05] Prevents Nce5.} ({Don't go for} 16. Nxf5 $2 dxc3 17. bxc3 (17. Qg4 $2 Qf6 $19) 17... g6 $19) 16... dxc3 $1 {[%emt 0:00:02]} 17. bxc3 {[%emt 0:00:09]} g5 {[%emt 0:00:02] [#]} 18. Bc1 $146 {[%emt 0:00:18][%cal Bf4c1,Bc1e3,Be3c5][%mdl 32] A strong pair of Bishops.} ({Predecessor:} 18. Be3 Bxe3 19. fxe3 Nde5 20. Qh5 Qf6 21. Rf1 Qg6 22. Qe2 a6 23. Bc2 Ne7 24. Rf2 {0-1 (56) Nepomniachtchi,I (2773)-Mamedyarov,S (2759) Bucharest 2022}) 18... g4 {[%emt 0:00:09]} 19. Qd5 {[%emt 0:00:07]} (19. Qf4 $5 {[%cal Rc1b2]}) 19... Qh4 {[%emt 0:00:47]} ({Black should play} 19... gxh3 $15 20. Bb2 Qh4 21. c4+ Bd4 22. Bxd4+ Qxd4) 20. Qxd7 {[%emt 0:00:33]} Qxg3 {[%emt 0:00:16]} 21. Be3 {[%emt 0:00:35] The board is on fire.} Qd6 {[%emt 0:00:37]} 22. Rad1 {[%emt 0:00:06]} Qxd7 {[%emt 0:00:12]} 23. Rxd7 {[%emt 0:00:02]} Rae8 {[%emt 0:00:05]} 24. Rxc7 {[%emt 0:01:05]} f4 {[%emt 0:00:05]} 25. Bxc5 {[%emt 0:00:01]} Rxe1+ {[%emt 0:00:02]} 26. Kh2 {[%emt 0:00:02]} Rf5 {[%emt 0:00:20]} 27. Rc8+ {[%emt 0:00:35]} Kg7 {[%emt 0:00:01]} 28. Rg8+ $1 {[%emt 0:00:02]} Kh6 {[%emt 0:00:12]} 29. Bf8+ {[%emt 0:00:11]} Rxf8 $1 {[%emt 0:00:01]} 30. Rxf8 {[%emt 0:00:01]} gxh3 {[%emt 0:00:04]} 31. gxh3 {[%emt 0:00:11][%mdl 4096] Endgame KRB-KRN} Rc1 {[%emt 0:00:24]} 32. Rxf4 {[%emt 0:00:04]} Rxc3 {[%emt 0:00:01]} 33. Rf7 {[%emt 0:00:03]} Na5 {[%emt 0:00:07]} 34. Bd5 {[%emt 0:00:02] [#] Threatens to win with Be4.} Kg6 {[%emt 0:00:05]} 35. Rd7 {[%emt 0:00:08]} h6 {[%emt 0:00:02]} 36. Be4+ {[%emt 0:00:10]} ({Much weaker is} 36. Bxb7 Nxb7 37. Rxb7 Ra3 $11) 36... Kf6 $1 {[%emt 0:00:01]} 37. Bxb7 {[%emt 0:00:06]} (37. f3 $14) 37... Nxb7 {[%emt 0:00:04] The position is equal.} 38. Rxb7 $14 {[%emt 0:00:01][%cal Bd7b7,Bb7b2,Bb2c2,Bc2c5,Bc5h5][%mdl 32] KR-KR} Ra3 {[%emt 0:00:05]} 39. Rb2 {[%emt 0:00:01]} Kf5 {[%emt 0:00:05]} 40. Kg2 {[%emt 0:00:02]} Kf4 {[%emt 0:00:08]} 41. Rc2 {[%emt 0:00:01]} a5 {[%emt 0:00:11][%cal Ba7a5,Ba5a4,Ba4a3,Ba3a2][%mdl 32]} 42. Rc5 {[%emt 0:00:06]} Rxa2 {[%emt 0:00:05]} 43. Rh5 {[%emt 0:00:01]} a4 {[%emt 0:00:07]} 44. Rxh6 {[%emt 0:00:01]} Kg5 {[%emt 0:00:00]} 45. Ra6 {[%emt 0:00:02]} a3 {[%emt 0:00:01]} 46. Ra5+ {[%emt 0:00:02]} Kg6 {[%emt 0:00:01]} 47. Kg3 {[%emt 0:00:04]} Ra1 {[%emt 0:00:01]} 48. Kf4 {[%emt 0:00:02]} a2 {[%emt 0:00:01]} 49. Ra6+ {[%emt 0:00:02]} Kg7 {[%emt 0:00:04]} 50. Kf5 {[%emt 0:00:03]} Rh1 $1 {[%emt 0:00:02]} 51. Ra7+ {[%emt 0:00:02]} Kf8 {[%emt 0:00:02]} 52. Rxa2 {[%emt 0:00:02]} Rxh3 {[%emt 0:00:01]} 53. Kg5 {[%emt 0:00:10]} Rf3 {[%emt 0:00:08]} 54. Kg6 {[%emt 0:00:02]} Ke7 {[%emt 0:00:03]} 55. Re2+ {[%emt 0:00:01]} Kf8 {[%emt 0:00:01]} 56. Re5 {[%emt 0:00:04] [#] Hoping for Rf5+.} Rxf2 {[%emt 0:00:02]} 57. Rf5+ {[%emt 0:00:01]} Rxf5 {[%emt 0:00:02]} 58. Kxf5 {Weighted Error Value: White=0.07 (flawless) /Black=0.07 (flawless)} 1/2-1/2